[Event "9th RTU Open 2019"]
[Site "Riga"]
[Date "2019.08.09"]
[Round "8.24"]
[White "Larkin, Vladyslav"]
[Black "Chandra, Akshat"]
[Result "0-1"]
[ECO "E46"]
[WhiteElo "2366"]
[BlackElo "2522"]
[Annotator "ChessBase"]
[PlyCount "68"]
[EventDate "2019.08.05"]
[EventType "swiss"]
[EventCountry "LAT"]
[SourceTitle "playchess.com"]
[Source "ChessBase"]
[SourceQuality "1"]
[TimeControl "5400+30"]

1. d4 {[%emt 0:00:00]} Nf6 {[%emt 0:03:04]} 2. c4 {[%emt 0:00:00]} e6 {[%emt 0:00:32]} 3. Nc3 {[%emt 0:00:06]} Bb4 {[%emt 0:00:39]} 4. e3 {[%emt 0:00:12]} O-O {[%emt 0:00:23]} 5. Nge2 {[%emt 0:00:13]} c6 {[%emt 0:01:38]} 6. a3 {[%emt 0:01:03]} Ba5 {[%emt 0:00:09]} 7. b4 {[%emt 0:28:39]} Bc7 {[%emt 0:00:13]} 8. g3 {[%emt 0:22:19]} d5 {[%emt 0:02:33]} 9. Bg2 {[%emt 0:00:15]} dxc4 {[%emt 0:08:14]} 10. e4 {[%emt 0:00:45]} e5 {[%emt 0:06:25]} 11. d5 {[%emt 0:01:07]} a5 {[%emt 0:06:21]} 12. Be3 {[%emt 0:07:11]} cxd5 {[%emt 0:05:24]} 13. exd5 {[%emt 0:00:06]} Bd6 {[%emt 0:04:30]} 14. O-O {[%emt 0:14:58]} axb4 {[%emt 0:01:51]} 15. axb4 {[%emt 0:00:07]} Rxa1 {[%emt 0:00:07]} 16. Qxa1 {[%emt 0:00:04]} Bf5 {[%emt 0:02:08]} 17. Qa7 {[%emt 0:11:08]} Bxb4 {[%emt 0:03:38]} 18. Qxb7 {[%emt 0:00:09]} Qa5 {[%emt 0:00:11]} 19. Bb6 {[%emt 0:02:40]} Qa3 {[%emt 0:02:23]} 20. Nb5 {[%emt 0:00:57]} Qb2 {[%emt 0:04:50]} 21. Nc1 {[%emt 0:05:12]} Nbd7 {[%emt 0:03:00]} 22. Be3 {[%emt 0:02:44]} Nc5 {[%emt 0:14:09]} 23. Qb6 {[%emt 0:00:32]} Nce4 {[%emt 0:00:57]} 24. Nc7 {[%emt 0:00:59]} Ng4 {[%emt 0:04:22]} 25. Na6 {[%emt 0:00:25]} Ba3 {[%emt 0:01:05]} 26. f3 {[%emt 0:00:30]} Nxe3 {[%emt 0:00:28]} 27. Qxe3 {[%emt 0:00:02]} Nd6 {[%emt 0:01:48]} 28. f4 {[%emt 0:00:31]} exf4 {[%emt 0:00:11]} 29. gxf4 {[%emt 0:00:32]} Re8 {[%emt 0:00:21]} 30. Qa7 {[%emt 0:00:13]} Qd2 {[%emt 0:04:55]} 31. Qc7 {[%emt 0:01:19]} Qe3+ {[%emt 0:01:18]} 32. Kh1 {[%emt 0:00:04]} Rc8 {[%emt 0:00:35]} 33. Qa5 {[%emt 0:00:50]} Bxc1 {[%emt 0:00:12]} 34. Qb4 {[%emt 0:00:04]} Ba3 {[%emt 0:00:09]} 0-1

[Event "9th RTU Open 2019"]
[Site "Riga"]
[Date "2019.08.09"]
[Round "8.25"]
[White "Stany, G.A."]
[Black "Seeman, Tarvo"]
[Result "1-0"]
[ECO "B30"]
[WhiteElo "2525"]
[BlackElo "2377"]
[Annotator "ChessBase"]
[PlyCount "79"]
[EventDate "2019.08.05"]
[EventType "swiss"]
[EventCountry "LAT"]
[SourceTitle "playchess.com"]
[Source "ChessBase"]
[SourceQuality "1"]
[TimeControl "5400+30"]

1. e4 {[%emt 0:00:29]} c5 {[%emt 0:00:00]} 2. Nf3 {[%emt 0:00:05]} Nc6 {[%emt 0:00:10]} 3. Bb5 {[%emt 0:04:16]} Nf6 {[%emt 0:00:51]} 4. Nc3 {[%emt 0:00:24]} Qc7 {[%emt 0:00:44]} 5. O-O {[%emt 0:00:20]} Nd4 {[%emt 0:01:36]} 6. Re1 {[%emt 0:00:55]} a6 {[%emt 0:02:56]} 7. Bf1 {[%emt 0:04:33]} Ng4 {[%emt 0:00:23]} 8. g3 {[%emt 0:00:38]} Nxf3+ {[%emt 0:00:12]} 9. Qxf3 {[%emt 0:00:04]} Ne5 {[%emt 0:00:08]} 10. Qe2 {[%emt 0:02:01]} e6 {[%emt 0:00:25]} 11. d3 {[%emt 0:00:18]} d6 {[%emt 0:03:05]} 12. Bg2 {[%emt 0:02:09]} Be7 {[%emt 0:00:09]} 13. Be3 {[%emt 0:09:58]} O-O {[%emt 0:02:46]} 14. Rad1 {[%emt 0:05:53]} Nc6 {[%emt 0:10:23]} 15. f4 {[%emt 0:05:10]} Rb8 {[%emt 0:12:29]} 16. Qf2 {[%emt 0:02:41]} b6 {[%emt 0:02:03]} 17. Nb1 {[%emt 0:05:48]} Bb7 {[%emt 0:08:43]} 18. c3 {[%emt 0:03:02]} f5 {[%emt 0:03:14]} 19. Nd2 {[%emt 0:08:22]} Kh8 {[%emt 0:05:21]} 20. Nf3 {[%emt 0:08:54]} fxe4 {[%emt 0:12:27]} 21. dxe4 {[%emt 0:00:13]} Rbd8 {[%emt 0:04:27]} 22. Qc2 {[%emt 0:01:48]} b5 {[%emt 0:02:35]} 23. Bf2 {[%emt 0:03:22]} b4 {[%emt 0:04:26]} 24. h4 {[%emt 0:17:32]} bxc3 {[%emt 0:02:54]} 25. bxc3 {[%emt 0:00:09]} h6 {[%emt 0:00:25]} 26. Bh3 {[%emt 0:04:09]} Bc8 {[%emt 0:00:45]} 27. Kg2 {[%emt 0:00:19]} d5 {[%emt 0:05:13]} 28. e5 {[%emt 0:03:56]} Qd7 {[%emt 0:05:05]} 29. Qb3 {[%emt 0:01:20]} Na5 {[%emt 0:01:11]} 30. Qc2 {[%emt 0:00:05]} Qe8 {[%emt 0:01:06]} 31. Bg4 {[%emt 0:00:40]} Bd7 {[%emt 0:03:54]} 32. Rb1 {[%emt 0:02:29]} Nc4 {[%emt 0:00:36]} 33. Rb3 {[%emt 0:01:16]} h5 {[%emt 0:03:53]} 34. Ng5 {[%emt 0:00:20]} Bxg5 {[%emt 0:00:10]} 35. hxg5 {[%emt 0:00:04]} g6 {[%emt 0:00:09]} 36. Bxc5 {[%emt 0:00:55]} hxg4 {[%emt 0:01:37]} 37. Bxf8 {[%emt 0:00:06]} Bc6 {[%emt 0:00:49]} 38. Kf2 {[%emt 0:03:12]} Nxe5 {[%emt 0:01:07]} 39. Rxe5 {[%emt 0:00:16]} Qxf8 {[%emt 0:00:09]} 40. Qxg6 {[%emt 0:00:09]} 1-0

[Event "9th RTU Open 2019"]
[Site "Riga"]
[Date "2019.08.09"]
[Round "8.26"]
[White "Krykun, Yuriy"]
[Black "Laurusas, Tomas"]
[Result "1/2-1/2"]
[ECO "A27"]
[WhiteElo "2342"]
[BlackElo "2511"]
[Annotator "ChessBase"]
[PlyCount "151"]
[EventDate "2019.08.05"]
[EventType "swiss"]
[EventCountry "LAT"]
[SourceTitle "playchess.com"]
[Source "ChessBase"]
[SourceQuality "1"]
[TimeControl "5400+30"]

1. c4 {[%emt 0:01:50]} e5 {[%emt 0:02:01]} 2. Nc3 {[%emt 0:00:09]} Nc6 {[%emt 0:01:02]} 3. Nf3 {[%emt 0:01:48]} Bc5 {[%emt 0:00:51]} 4. e3 {[%emt 0:03:04]} d6 {[%emt 0:01:17]} 5. d4 {[%emt 0:00:44]} exd4 {[%emt 0:00:34]} 6. exd4 {[%emt 0:02:07]} Bb6 {[%emt 0:00:07]} 7. Nd5 {[%emt 0:05:18]} Nge7 {[%emt 0:07:21]} 8. Nxb6 {[%emt 0:00:59]} axb6 {[%emt 0:00:08]} 9. d5 {[%emt 0:01:22]} Ne5 {[%emt 0:00:43]} 10. Be2 {[%emt 0:02:25]} O-O {[%emt 0:00:11]} 11. O-O {[%emt 0:00:09]} Nf5 {[%emt 0:05:14]} 12. Bd2 {[%emt 0:04:40]} Bd7 {[%emt 0:04:06]} 13. Bc3 {[%emt 0:01:47]} Nxf3+ {[%emt 0:00:39]} 14. Bxf3 {[%emt 0:00:03]} b5 {[%emt 0:00:10]} 15. cxb5 {[%emt 0:11:03]} Bxb5 {[%emt 0:01:11]} 16. Re1 {[%emt 0:00:10]} Nh4 {[%emt 0:02:37]} 17. Be2 {[%emt 0:11:21]} Bxe2 {[%emt 0:04:12]} 18. Qxe2 {[%emt 0:01:49]} Qd7 {[%emt 0:00:07]} 19. Qd3 {[%emt 0:07:00]} Ng6 {[%emt 0:07:52]} 20. b3 {[%emt 0:04:15]} Rfe8 {[%emt 0:00:45]} 21. a4 {[%emt 0:00:21]} f6 {[%emt 0:00:43]} 22. a5 {[%emt 0:00:50]} Qg4 {[%emt 0:03:13]} 23. Rxe8+ {[%emt 0:10:08]} Rxe8 {[%emt 0:00:05]} 24. Qd1 {[%emt 0:01:17]} Qf5 {[%emt 0:05:24]} 25. g3 {[%emt 0:04:06]} Ne7 {[%emt 0:14:20]} 26. Qe2 {[%emt 0:01:02]} Qxd5 {[%emt 0:03:46]} 27. b4 {[%emt 0:02:15]} Qc6 {[%emt 0:01:16]} 28. Qe6+ {[%emt 0:00:53]} Kf8 {[%emt 0:00:05]} 29. Bb2 {[%emt 0:00:27]} Qc2 {[%emt 0:06:38]} 30. Bxf6 {[%emt 0:02:20]} gxf6 {[%emt 0:00:01]} 31. Qxf6+ {[%emt 0:00:01]} Kg8 {[%emt 0:00:11]} 32. Qe6+ {[%emt 0:00:09]} Kg7 {[%emt 0:00:01]} 33. Re1 {[%emt 0:00:12]} Qc6 {[%emt 0:05:21]} 34. b5 {[%emt 0:06:01]} Qxb5 {[%emt 0:01:02]} 35. Re4 {[%emt 0:00:06]} Qc6 {[%emt 0:03:52]} 36. Rf4 {[%emt 0:09:02]} Nd5 {[%emt 0:01:26]} 37. Qf7+ {[%emt 0:01:42]} Kh8 {[%emt 0:00:01]} 38. Re4 {[%emt 0:00:36]} Rg8 {[%emt 0:00:11]} 39. Rh4 {[%emt 0:00:36]} Qc1+ {[%emt 0:01:25]} 40. Kg2 {[%emt 0:00:08]} Ne3+ {[%emt 0:00:21]} 41. fxe3 {[%emt 0:00:10]} Qb2+ {[%emt 0:00:09]} 42. Kh3 {[%emt 0:00:54]} Qg7 {[%emt 0:00:06]} 43. Qxg7+ {[%emt 0:00:47]} Rxg7 {[%emt 0:00:51]} 44. Rb4 {[%emt 0:00:06]} c6 {[%emt 0:00:25]} 45. Rb6 {[%emt 0:00:17]} Rc7 {[%emt 0:00:07]} 46. a6 {[%emt 0:00:04]} bxa6 {[%emt 0:00:04]} 47. Rxa6 {[%emt 0:00:02]} Kg7 {[%emt 0:00:07]} 48. Kg4 {[%emt 0:00:08]} Kf6 {[%emt 0:00:01]} 49. Kf4 {[%emt 0:00:10]} Ke6 {[%emt 0:00:15]} 50. Ke4 {[%emt 0:01:26]} c5 {[%emt 0:00:06]} 51. Kd3 {[%emt 0:01:18]} Rb7 {[%emt 0:00:33]} 52. Ra8 {[%emt 0:00:53]} Rb3+ {[%emt 0:01:58]} 53. Ke4 {[%emt 0:00:04]} d5+ {[%emt 0:02:30]} 54. Kf4 {[%emt 0:00:06]} Rb4+ {[%emt 0:00:05]} 55. Kf3 {[%emt 0:00:07]} Rb3 {[%emt 0:04:19]} 56. Kf4 {[%emt 0:00:25]} c4 {[%emt 0:01:25]} 57. Rc8 {[%emt 0:02:02]} Kd7 {[%emt 0:01:36]} 58. Rc5 {[%emt 0:00:12]} Kd6 {[%emt 0:00:04]} 59. Rc8 {[%emt 0:00:07]} Rb2 {[%emt 0:00:09]} 60. e4 {[%emt 0:01:41]} Rxh2 {[%emt 0:01:08]} 61. Rd8+ {[%emt 0:00:14]} Kc5 {[%emt 0:00:08]} 62. Rxd5+ {[%emt 0:00:05]} Kb4 {[%emt 0:00:05]} 63. Rd7 {[%emt 0:01:18]} c3 {[%emt 0:00:31]} 64. Rc7 {[%emt 0:00:36]} c2 {[%emt 0:01:29]} 65. e5 {[%emt 0:00:04]} Kb3 {[%emt 0:00:22]} 66. e6 {[%emt 0:00:22]} Re2 {[%emt 0:00:37]} 67. Kf5 {[%emt 0:01:24]} Kb2 {[%emt 0:01:21]} 68. Rb7+ {[%emt 0:00:31]} Kc3 {[%emt 0:00:05]} 69. Rxh7 {[%emt 0:01:07]} Rf2+ {[%emt 0:02:34]} 70. Kg6 {[%emt 0:00:15]} Rg2 {[%emt 0:00:11]} 71. Rc7+ {[%emt 0:00:04]} Kd2 {[%emt 0:00:05]} 72. Rxc2+ {[%emt 0:00:51]} Kxc2 {[%emt 0:00:05]} 73. e7 {[%emt 0:00:01]} Rxg3+ {[%emt 0:00:06]} 74. Kf7 {[%emt 0:00:01]} Re3 {[%emt 0:00:08]} 75. e8=Q {[%emt 0:00:03]} Rxe8 {[%emt 0:00:05]} 76. Kxe8 {[%emt 0:00:04]} 1/2-1/2

[Event "9th RTU Open 2019"]
[Site "Riga"]
[Date "2019.08.09"]
[Round "8.27"]
[White "Salomon, Johan"]
[Black "Semjonovs, Ilja"]
[Result "1-0"]
[ECO "A58"]
[WhiteElo "2499"]
[BlackElo "2380"]
[Annotator "ChessBase"]
[PlyCount "95"]
[EventDate "2019.08.05"]
[EventType "swiss"]
[EventCountry "LAT"]
[SourceTitle "playchess.com"]
[Source "ChessBase"]
[SourceQuality "1"]
[TimeControl "5400+30"]

1. d4 {[%emt 0:06:38]} Nf6 {[%emt 0:00:15]} 2. c4 {[%emt 0:00:00]} c5 {[%emt 0:01:21]} 3. d5 {[%emt 0:00:36]} b5 {[%emt 0:00:06]} 4. cxb5 {[%emt 0:00:07]} a6 {[%emt 0:00:04]} 5. bxa6 {[%emt 0:00:09]} g6 {[%emt 0:00:05]} 6. Nc3 {[%emt 0:00:33]} Bg7 {[%emt 0:00:07]} 7. e4 {[%emt 0:02:35]} O-O {[%emt 0:02:36]} 8. e5 {[%emt 0:00:47]} Ne8 {[%emt 0:00:10]} 9. h4 {[%emt 0:00:08]} Bxe5 {[%emt 0:05:39]} 10. h5 {[%emt 0:02:31]} Qb6 {[%emt 0:13:29]} 11. Nf3 {[%emt 0:09:07]} Bg7 {[%emt 0:02:19]} 12. hxg6 {[%emt 0:05:28]} fxg6 {[%emt 0:04:10]} 13. Ng5 {[%emt 0:00:55]} h6 {[%emt 0:08:04]} 14. Nge4 {[%emt 0:02:51]} Nf6 {[%emt 0:07:50]} 15. d6 {[%emt 0:11:29]} e6 {[%emt 0:06:13]} 16. Qb3 {[%emt 0:04:18]} Qb4 {[%emt 0:05:55]} 17. Bxh6 {[%emt 0:05:28]} Nxe4 {[%emt 0:05:20]} 18. Qxb4 {[%emt 0:00:12]} cxb4 {[%emt 0:00:04]} 19. Nxe4 {[%emt 0:00:20]} Bxa6 {[%emt 0:01:32]} 20. Bxg7 {[%emt 0:01:09]} Kxg7 {[%emt 0:00:08]} 21. Bxa6 {[%emt 0:03:50]} Rxa6 {[%emt 0:02:52]} 22. Kd2 {[%emt 0:01:16]} Nc6 {[%emt 0:10:21]} 23. Rh3 {[%emt 0:03:05]} Rf5 {[%emt 0:02:24]} 24. a4 {[%emt 0:13:31]} bxa3 {[%emt 0:01:29]} 25. Raxa3 {[%emt 0:01:09]} Rb6 {[%emt 0:00:13]} 26. Rhb3 {[%emt 0:01:42]} Rd5+ {[%emt 0:01:12]} 27. Kc3 {[%emt 0:02:27]} Rxb3+ {[%emt 0:01:34]} 28. Rxb3 {[%emt 0:00:22]} g5 {[%emt 0:00:14]} 29. Rb7 {[%emt 0:02:01]} Ne5 {[%emt 0:00:09]} 30. Rc7 {[%emt 0:06:32]} Rd3+ {[%emt 0:04:00]} 31. Kc2 {[%emt 0:00:03]} Rd4 {[%emt 0:00:10]} 32. f3 {[%emt 0:00:05]} Kg6 {[%emt 0:02:30]} 33. Rc5 {[%emt 0:01:18]} Nf7 {[%emt 0:01:10]} 34. g4 {[%emt 0:01:10]} Kh6 {[%emt 0:03:54]} 35. Kc3 {[%emt 0:04:26]} Rd1 {[%emt 0:00:20]} 36. b4 {[%emt 0:00:09]} Nxd6 {[%emt 0:00:10]} 37. Nxd6 {[%emt 0:01:03]} Rxd6 {[%emt 0:00:07]} 38. b5 {[%emt 0:00:13]} Rd1 {[%emt 0:00:09]} 39. Kb4 {[%emt 0:01:03]} Rb1+ {[%emt 0:01:12]} 40. Ka5 {[%emt 0:00:04]} Ra1+ {[%emt 0:02:13]} 41. Kb6 {[%emt 0:00:02]} Kg6 {[%emt 0:01:45]} 42. Kc7 {[%emt 0:00:55]} d5 {[%emt 0:00:06]} 43. b6 {[%emt 0:00:08]} Rb1 {[%emt 0:00:03]} 44. b7 {[%emt 0:01:19]} Kf6 {[%emt 0:00:05]} 45. b8=Q {[%emt 0:02:09]} Rxb8 {[%emt 0:00:06]} 46. Kxb8 {[%emt 0:00:01]} Ke5 {[%emt 0:00:06]} 47. Kc7 {[%emt 0:00:45]} Kf4 {[%emt 0:00:07]} 48. Kd6 {[%emt 0:00:09]} 1-0

[Event "9th RTU Open 2019"]
[Site "Riga"]
[Date "2019.08.09"]
[Round "8.28"]
[White "Kramer, Julian"]
[Black "Lobanov, Sergei"]
[Result "0-1"]
[ECO "B90"]
[WhiteElo "2352"]
[BlackElo "2495"]
[Annotator "ChessBase"]
[PlyCount "116"]
[EventDate "2019.08.05"]
[EventType "swiss"]
[EventCountry "LAT"]
[SourceTitle "playchess.com"]
[Source "ChessBase"]
[SourceQuality "1"]
[TimeControl "5400+30"]

1. e4 {[%emt 0:01:14]} c5 {[%emt 0:00:00]} 2. Nf3 {[%emt 0:00:07]} d6 {[%emt 0:00:00]} 3. d4 {[%emt 0:00:07]} cxd4 {[%emt 0:00:00]} 4. Nxd4 {[%emt 0:00:04]} Nf6 {[%emt 0:00:00]} 5. Nc3 {[%emt 0:00:04]} a6 {[%emt 0:00:00]} 6. a3 {[%emt 0:00:13]} Nc6 {[%emt 0:00:40]} 7. f3 {[%emt 0:01:17]} e6 {[%emt 0:00:31]} 8. Be3 {[%emt 0:00:51]} d5 {[%emt 0:01:42]} 9. exd5 {[%emt 0:10:40]} Nxd5 {[%emt 0:00:04]} 10. Nxd5 {[%emt 0:00:06]} Qxd5 {[%emt 0:00:06]} 11. Nxc6 {[%emt 0:05:57]} Qxc6 {[%emt 0:00:05]} 12. Qd4 {[%emt 0:03:45]} Qxc2 {[%emt 0:15:20]} 13. Rd1 {[%emt 0:20:26]} f6 {[%emt 0:04:54]} 14. Qd8+ {[%emt 0:16:19]} Kf7 {[%emt 0:00:06]} 15. Rd2 {[%emt 0:00:18]} Qc6 {[%emt 0:04:51]} 16. h4 {[%emt 0:02:56]} b5 {[%emt 0:07:17]} 17. Kf2 {[%emt 0:03:23]} e5 {[%emt 0:00:39]} 18. Bd3 {[%emt 0:03:51]} Be6 {[%emt 0:01:01]} 19. Qa5 {[%emt 0:02:49]} Bc5 {[%emt 0:04:32]} 20. Rc2 {[%emt 0:00:49]} Bxe3+ {[%emt 0:00:16]} 21. Kxe3 {[%emt 0:00:05]} Bc4 {[%emt 0:00:33]} 22. Bxc4+ {[%emt 0:05:23]} bxc4 {[%emt 0:00:01]} 23. Rhc1 {[%emt 0:00:20]} Rhb8 {[%emt 0:00:26]} 24. Rxc4 {[%emt 0:00:53]} Rb3+ {[%emt 0:00:29]} 25. Kf2 {[%emt 0:06:52]} Rxb2+ {[%emt 0:00:10]} 26. Kg1 {[%emt 0:01:23]} Qb6+ {[%emt 0:03:10]} 27. Qxb6 {[%emt 0:00:04]} Rxb6 {[%emt 0:00:01]} 28. Rc7+ {[%emt 0:00:12]} Kg6 {[%emt 0:00:05]} 29. R1c3 {[%emt 0:00:42]} Rab8 {[%emt 0:09:06]} 30. Ra7 {[%emt 0:00:04]} R8b7 {[%emt 0:00:10]} 31. Rxb7 {[%emt 0:00:04]} Rxb7 {[%emt 0:00:03]} 32. Rc6 {[%emt 0:00:04]} Kh5 {[%emt 0:00:09]} 33. Rc4 {[%emt 0:01:24]} Rd7 {[%emt 0:02:11]} 34. Ra4 {[%emt 0:07:41]} Rd4 {[%emt 0:05:45]} 35. Rxa6 {[%emt 0:00:05]} Rxh4 {[%emt 0:00:04]} 36. Ra7 {[%emt 0:00:37]} Kg6 {[%emt 0:00:03]} 37. a4 {[%emt 0:00:25]} h5 {[%emt 0:00:04]} 38. Kf2 {[%emt 0:00:08]} Rb4 {[%emt 0:02:21]} 39. Kg3 {[%emt 0:00:05]} Kh6 {[%emt 0:15:30]} 40. a5 {[%emt 0:00:21]} g6 {[%emt 0:03:38]} 41. a6 {[%emt 0:00:15]} Rb6 {[%emt 0:00:13]} 42. Ra8 {[%emt 0:00:18]} Kg5 {[%emt 0:00:04]} 43. a7 {[%emt 0:01:36]} Rb7 {[%emt 0:03:29]} 44. Kf2 {[%emt 0:03:19]} h4 {[%emt 0:00:46]} 45. Ke3 {[%emt 0:01:06]} Re7 {[%emt 0:03:20]} 46. Kf2 {[%emt 0:00:09]} Rh7 {[%emt 0:00:09]} 47. Kg1 {[%emt 0:00:15]} Kf5 {[%emt 0:00:05]} 48. Kf2 {[%emt 0:01:59]} g5 {[%emt 0:01:11]} 49. Ke3 {[%emt 0:00:17]} Rf7 {[%emt 0:00:05]} 50. Ke2 {[%emt 0:00:31]} Kf4 {[%emt 0:00:41]} 51. Kf2 {[%emt 0:00:04]} f5 {[%emt 0:00:06]} 52. Kf1 {[%emt 0:00:14]} Rb7 {[%emt 0:00:05]} 53. Kf2 {[%emt 0:00:29]} Rb2+ {[%emt 0:00:05]} 54. Kg1 {[%emt 0:01:54]} Ra2 {[%emt 0:00:05]} 55. Kf1 {[%emt 0:00:26]} Ke3 {[%emt 0:00:11]} 56. Kg1 {[%emt 0:00:13]} Ra1+ {[%emt 0:00:04]} 57. Kh2 {[%emt 0:00:03]} Kf4 {[%emt 0:00:03]} 58. Kh3 {[%emt 0:00:45]} Rh1# {[%emt 0:00:02]} 0-1

[Event "9th RTU Open 2019"]
[Site "Riga"]
[Date "2019.08.09"]
[Round "8.29"]
[White "Sergienko, Sergey"]
[Black "Jurcik, Marian"]
[Result "0-1"]
[ECO "A09"]
[WhiteElo "2320"]
[BlackElo "2501"]
[Annotator "ChessBase"]
[PlyCount "56"]
[EventDate "2019.08.05"]
[EventType "swiss"]
[EventCountry "LAT"]
[SourceTitle "playchess.com"]
[Source "ChessBase"]
[SourceQuality "1"]
[TimeControl "5400+30"]

1. Nf3 {[%emt 0:00:00]} d5 {[%emt 0:04:34]} 2. c4 {[%emt 0:00:00]} d4 {[%emt 0:00:43]} 3. b4 {[%emt 0:00:59]} g5 {[%emt 0:00:10]} 4. Bb2 {[%emt 0:09:06]} Bg7 {[%emt 0:01:32]} 5. d3 {[%emt 0:05:16]} e5 {[%emt 0:06:00]} 6. e4 {[%emt 0:18:31]} g4 {[%emt 0:12:25]} 7. Nfd2 {[%emt 0:00:27]} Ne7 {[%emt 0:00:27]} 8. Nb3 {[%emt 0:05:47]} Ng6 {[%emt 0:04:02]} 9. N1d2 {[%emt 0:01:28]} h5 {[%emt 0:03:16]} 10. g3 {[%emt 0:09:19]} h4 {[%emt 0:03:05]} 11. Qc2 {[%emt 0:07:36]} hxg3 {[%emt 0:09:19]} 12. fxg3 {[%emt 0:00:45]} b6 {[%emt 0:07:58]} 13. Be2 {[%emt 0:17:53]} Bh6 {[%emt 0:04:14]} 14. Nf1 {[%emt 0:00:58]} Qe7 {[%emt 0:04:17]} 15. a3 {[%emt 0:00:45]} a5 {[%emt 0:08:16]} 16. b5 {[%emt 0:02:07]} a4 {[%emt 0:00:14]} 17. Nbd2 {[%emt 0:01:30]} Be6 {[%emt 0:01:36]} 18. Bc1 {[%emt 0:02:34]} Nd7 {[%emt 0:00:29]} 19. Nb1 {[%emt 0:00:47]} Nf4 {[%emt 0:11:08]} 20. gxf4 {[%emt 0:00:48]} Qh4+ {[%emt 0:00:20]} 21. Kd1 {[%emt 0:01:00]} exf4 {[%emt 0:00:02]} 22. Nfd2 {[%emt 0:06:20]} Nc5 {[%emt 0:01:48]} 23. Nc3 {[%emt 0:02:14]} dxc3 {[%emt 0:00:56]} 24. Qxc3 {[%emt 0:00:04]} O-O-O {[%emt 0:01:41]} 25. d4 {[%emt 0:00:39]} f3 {[%emt 0:01:20]} 26. Bxf3 {[%emt 0:00:14]} gxf3 {[%emt 0:02:06]} 27. dxc5 {[%emt 0:00:06]} Qxe4 {[%emt 0:01:47]} 28. Re1 {[%emt 0:03:02]} Qxc4 {[%emt 0:00:58]} 0-1

[Event "9th RTU Open 2019"]
[Site "Riga"]
[Date "2019.08.09"]
[Round "8.30"]
[White "Chukavin, Kirill"]
[Black "Hirneise, Tobias"]
[Result "1/2-1/2"]
[ECO "C54"]
[WhiteElo "2300"]
[BlackElo "2459"]
[Annotator "ChessBase"]
[PlyCount "148"]
[EventDate "2019.08.05"]
[EventType "swiss"]
[EventCountry "LAT"]
[SourceTitle "playchess.com"]
[Source "ChessBase"]
[SourceQuality "1"]
[TimeControl "5400+30"]

1. e4 {[%emt 0:02:30]} e5 {[%emt 0:00:00]} 2. Nf3 {[%emt 0:00:17]} Nc6 {[%emt 0:00:00]} 3. Bc4 {[%emt 0:01:15]} Bc5 {[%emt 0:00:00]} 4. c3 {[%emt 0:00:37]} Nf6 {[%emt 0:00:00]} 5. d3 {[%emt 0:00:26]} d6 {[%emt 0:01:19]} 6. Nbd2 {[%emt 0:01:20]} a6 {[%emt 0:00:24]} 7. a4 {[%emt 0:11:00]} O-O {[%emt 0:01:24]} 8. O-O {[%emt 0:01:14]} h6 {[%emt 0:01:02]} 9. h3 {[%emt 0:02:20]} Re8 {[%emt 0:03:56]} 10. Re1 {[%emt 0:02:58]} Be6 {[%emt 0:00:34]} 11. Bxe6 {[%emt 0:11:37]} Rxe6 {[%emt 0:00:25]} 12. Nf1 {[%emt 0:03:17]} d5 {[%emt 0:02:15]} 13. Qc2 {[%emt 0:10:54]} a5 {[%emt 0:08:43]} 14. Be3 {[%emt 0:04:49]} Bf8 {[%emt 0:00:24]} 15. Ng3 {[%emt 0:04:35]} Qd7 {[%emt 0:04:27]} 16. Rad1 {[%emt 0:02:53]} Rae8 {[%emt 0:01:57]} 17. Bc1 {[%emt 0:10:20]} g6 {[%emt 0:10:16]} 18. Kh2 {[%emt 0:08:07]} Bg7 {[%emt 0:06:30]} 19. Kg1 {[%emt 0:00:38]} b6 {[%emt 0:01:50]} 20. Re2 {[%emt 0:00:43]} Rd8 {[%emt 0:05:23]} 21. Rde1 {[%emt 0:05:25]} dxe4 {[%emt 0:04:10]} 22. dxe4 {[%emt 0:00:16]} Rd6 {[%emt 0:00:36]} 23. Rd2 {[%emt 0:04:58]} Qe6 {[%emt 0:02:18]} 24. Red1 {[%emt 0:00:45]} Ne8 {[%emt 0:02:47]} 25. b3 {[%emt 0:01:01]} Rxd2 {[%emt 0:00:51]} 26. Rxd2 {[%emt 0:00:24]} Nd6 {[%emt 0:00:08]} 27. Ba3 {[%emt 0:00:51]} Nb7 {[%emt 0:01:53]} 28. Rxd8+ {[%emt 0:00:17]} Ncxd8 {[%emt 0:01:18]} 29. Nf1 {[%emt 0:00:40]} Qc6 {[%emt 0:06:01]} 30. Ne3 {[%emt 0:01:15]} Ne6 {[%emt 0:03:17]} 31. Nd5 {[%emt 0:01:55]} Kh7 {[%emt 0:01:44]} 32. Ne7 {[%emt 0:01:27]} Qd7 {[%emt 0:00:58]} 33. Nf5 {[%emt 0:00:54]} f6 {[%emt 0:04:53]} 34. Nxg7 {[%emt 0:00:45]} Kxg7 {[%emt 0:00:08]} 35. Qd2 {[%emt 0:01:08]} Qxd2 {[%emt 0:02:24]} 36. Nxd2 {[%emt 0:00:01]} Nbc5 {[%emt 0:00:07]} 37. Kf1 {[%emt 0:01:00]} c6 {[%emt 0:00:37]} 38. g3 {[%emt 0:00:46]} b5 {[%emt 0:05:56]} 39. axb5 {[%emt 0:00:05]} cxb5 {[%emt 0:00:01]} 40. b4 {[%emt 0:00:42]} axb4 {[%emt 0:02:37]} 41. Bxb4 {[%emt 0:00:10]} Na4 {[%emt 0:00:25]} 42. h4 {[%emt 0:02:36]} h5 {[%emt 0:00:35]} 43. Nb1 {[%emt 0:01:45]} Nac5 {[%emt 0:02:16]} 44. f3 {[%emt 0:00:01]} Nd3 {[%emt 0:02:17]} 45. Bd6 {[%emt 0:00:42]} Kf7 {[%emt 0:03:23]} 46. Na3 {[%emt 0:00:09]} g5 {[%emt 0:01:02]} 47. hxg5 {[%emt 0:00:32]} Nxg5 {[%emt 0:00:05]} 48. Ke2 {[%emt 0:00:12]} Nb2 {[%emt 0:00:31]} 49. Nxb5 {[%emt 0:00:09]} Nc4 {[%emt 0:00:17]} 50. Bb4 {[%emt 0:01:26]} Ke6 {[%emt 0:00:20]} 51. Nc7+ {[%emt 0:00:43]} Kd7 {[%emt 0:00:03]} 52. Nd5 {[%emt 0:00:03]} Ke6 {[%emt 0:00:01]} 53. Nc7+ {[%emt 0:00:54]} Kd7 {[%emt 0:00:01]} 54. Nd5 {[%emt 0:00:01]} Ke6 {[%emt 0:00:00]} 55. Be7 {[%emt 0:01:08]} Nh7 {[%emt 0:01:01]} 56. Bd8 {[%emt 0:00:21]} f5 {[%emt 0:00:24]} 57. Ne3 {[%emt 0:00:36]} Nxe3 {[%emt 0:00:22]} 58. Kxe3 {[%emt 0:00:01]} Nf8 {[%emt 0:00:04]} 59. Kd3 {[%emt 0:01:01]} f4 {[%emt 0:00:29]} 60. gxf4 {[%emt 0:00:32]} exf4 {[%emt 0:00:03]} 61. Ke2 {[%emt 0:00:26]} Ng6 {[%emt 0:00:11]} 62. Bc7 {[%emt 0:00:29]} Kd7 {[%emt 0:00:31]} 63. Bb8 {[%emt 0:00:25]} h4 {[%emt 0:01:39]} 64. Kf2 {[%emt 0:00:12]} h3 {[%emt 0:00:17]} 65. Kg1 {[%emt 0:00:56]} Nh4 {[%emt 0:00:09]} 66. Bxf4 {[%emt 0:00:33]} Nxf3+ {[%emt 0:00:29]} 67. Kf2 {[%emt 0:00:04]} h2 {[%emt 0:00:56]} 68. Kg2 {[%emt 0:00:01]} Ke6 {[%emt 0:00:21]} 69. c4 {[%emt 0:00:27]} Kd7 {[%emt 0:03:03]} 70. c5 {[%emt 0:01:19]} Kc6 {[%emt 0:00:58]} 71. Bd6 {[%emt 0:00:33]} Nd2 {[%emt 0:01:27]} 72. e5 {[%emt 0:00:07]} Nc4 {[%emt 0:00:52]} 73. Kxh2 {[%emt 0:00:08]} Nxe5 {[%emt 0:00:09]} 74. Bxe5 {[%emt 0:00:03]} Kxc5 {[%emt 0:00:02]} 1/2-1/2